[Event "7th Tulasi Lal Memorial TCCC 2024"]
[Site "Chyasal"]
[Date "2024.12.29"]
[Round "1.1"]
[White "Maharjan, Sajin"]
[Black "Jaiswal, Rupesh"]
[Result "1/2-1/2"]
[ECO "B21"]
[WhiteElo "1960"]
[BlackElo "2062"]
[Annotator "RC"]
[PlyCount "40"]
[EventDate "2024.12.29"]
[EventType "team-tourn"]
[EventCountry "NEP"]
[SourceTitle "playchess.com"]
[Source "ChessBase"]
[SourceQuality "1"]
[TimeControl "5400+30"]

1. e4 {[%emt 0:00:29]} c5 {[%emt 0:00:06]} 2. d4 {[%emt 0:00:10]} cxd4 {[%emt 0:01:27]} 3. c3 {[%emt 0:00:31]} dxc3 {[%emt 0:00:11]} 4. Nxc3 {[%emt 0:00:06]} Nc6 {[%emt 0:00:02]} 5. Nf3 {[%emt 0:00:19]} e6 {[%emt 0:00:04]} 6. Bc4 {[%emt 0:00:23]} Bb4 {[%emt 0:00:06]} 7. O-O {[%emt 0:02:12]} Nge7 {[%emt 0:00:16]} 8. Bg5 {[%emt 0:08:40]} O-O {[%emt 0:02:12]} 9. Qe2 {[%emt 0:00:46]} f6 {[%emt 0:03:40]} 10. Be3 {[%emt 0:03:29]} Bxc3 {[%emt 0:03:05]} 11. bxc3 {[%emt 0:00:08]} Qa5 {[%emt 0:00:04]} 12. Rab1 {[%emt 0:03:30]} d5 {[%emt 0:12:03]} 13. Rb5 {[%emt 0:05:22]} Qxc3 {[%emt 0:01:29]} 14. exd5 {[%emt 0:08:26]} exd5 {[%emt 0:04:45]} 15. Bb3 {[%emt 0:04:00]} Ne5 {[%emt 0:15:01]} 16. Rc1 {[%emt 0:10:09]} Nxf3+ {[%emt 0:02:10]} 17. Qxf3 {[%emt 0:13:50]} Qe5 {[%emt 0:02:25]} 18. Bf4 {[%emt 0:01:52]} Qf5 {[%emt 0:01:16]} 19. Bd6 {[%emt 0:07:48]} Qxf3 {[%emt 0:04:05]} 20. gxf3 {[%emt 0:00:55]} Re8 {[%emt 0:00:38]} 1/2-1/2

[Event "7th Tulasi Lal Memorial TCCC 2024"]
[Site "Chyasal"]
[Date "2024.12.29"]
[Round "1.2"]
[White "Silwal, Purushottam"]
[Black "Neupane, Shailendra"]
[Result "1/2-1/2"]
[ECO "C01"]
[WhiteElo "2058"]
[BlackElo "2016"]
[Annotator "RC"]
[PlyCount "225"]
[EventDate "2024.12.29"]
[EventType "team-tourn"]
[EventCountry "NEP"]
[SourceTitle "playchess.com"]
[Source "ChessBase"]
[SourceQuality "1"]
[TimeControl "5400+30"]

1. e4 {[%emt 0:00:11]} e6 {[%emt 0:00:14]} 2. d4 {[%emt 0:01:43]} d5 {[%emt 0:00:07]} 3. Bd3 {[%emt 0:01:05]} dxe4 {[%emt 0:00:53]} 4. Bxe4 {[%emt 0:00:08]} Nf6 {[%emt 0:00:13]} 5. Bf3 {[%emt 0:00:08]} Be7 {[%emt 0:02:16]} 6. Ne2 {[%emt 0:00:08]} O-O {[%emt 0:00:20]} 7. O-O {[%emt 0:00:12]} Nc6 {[%emt 0:03:23]} 8. c4 {[%emt 0:01:07]} Bd7 {[%emt 0:02:33]} 9. Nbc3 {[%emt 0:00:14]} Re8 {[%emt 0:00:56]} 10. Be3 {[%emt 0:14:26]} Na5 11. b3 Rb8 {[%emt 0:09:29]} 12. Qd3 {[%emt 0:10:54]} b6 {[%emt 0:01:05]} 13. Rfd1 {[%emt 0:03:55]} Bc6 {[%emt 0:02:25]} 14. d5 {[%emt 0:06:55]} exd5 {[%emt 0:03:46]} 15. cxd5 {[%emt 0:01:42]} Bb7 {[%emt 0:05:13]} 16. Rac1 {[%emt 0:03:05]} a6 {[%emt 0:05:59]} 17. Ng3 {[%emt 0:07:06]} b5 {[%emt 0:03:21]} 18. Nf5 {[%emt 0:01:58]} Ba3 {[%emt 0:04:01]} 19. Rc2 {[%emt 0:00:14]} Bc8 {[%emt 0:00:17]} 20. Bg5 {[%emt 0:06:59]} Nb7 {[%emt 0:01:13]} 21. Nd4 {[%emt 0:18:44]} Bd7 {[%emt 0:09:57]} 22. Ne4 {[%emt 0:05:08]} Be7 {[%emt 0:02:29]} 23. Nxf6+ {[%emt 0:00:48]} Bxf6 {[%emt 0:06:38]} 24. Bxf6 {[%emt 0:00:09]} gxf6 {[%emt 0:00:34]} 25. Be4 {[%emt 0:03:11]} Nd6 {[%emt 0:03:29]} 26. Bxh7+ {[%emt 0:00:26]} Kg7 {[%emt 0:00:10]} 27. Nf5+ {[%emt 0:00:44]} Bxf5 {[%emt 0:00:34]} 28. Bxf5 {[%emt 0:00:07]} Re5 {[%emt 0:01:08]} 29. Bg4 {[%emt 0:01:23]} Qe7 {[%emt 0:00:37]} 30. g3 {[%emt 0:00:35]} Rh8 {[%emt 0:00:53]} 31. Rdc1 {[%emt 0:00:59]} f5 {[%emt 0:04:05]} 32. Bf3 {[%emt 0:02:41]} Ne8 {[%emt 0:02:09]} 33. Qd4 {[%emt 0:01:01]} Qf6 {[%emt 0:00:40]} 34. Kg2 {[%emt 0:00:06]} f4 {[%emt 0:02:13]} 35. Qxf4 {[%emt 0:02:34]} Qxf4 {[%emt 0:00:17]} 36. gxf4 {[%emt 0:00:07]} Rf5 {[%emt 0:00:10]} 37. Kg3 {[%emt 0:00:49]} Rh6 {[%emt 0:00:33]} 38. Rc6 {[%emt 0:01:42]} Nf6 {[%emt 0:00:48]} 39. h3 {[%emt 0:00:39]} Rg6+ {[%emt 0:00:20]} 40. Bg4 {[%emt 0:00:28]} Rxd5 {[%emt 0:03:25]} 41. Kf3 {[%emt 0:00:19]} Rd3+ {[%emt 0:01:28]} 42. Ke2 {[%emt 0:00:10]} Rd4 {[%emt 0:03:38]} 43. Ke3 {[%emt 0:03:28]} Rd8 {[%emt 0:02:44]} 44. Bf5 {[%emt 0:01:13]} Nd5+ {[%emt 0:01:11]} 45. Kf3 {[%emt 0:00:16]} Rgd6 {[%emt 0:02:38]} 46. Be4 {[%emt 0:01:06]} Nf6 {[%emt 0:01:26]} 47. Rxc7 {[%emt 0:01:09]} Nxe4 {[%emt 0:01:03]} 48. Kxe4 {[%emt 0:00:08]} Re6+ {[%emt 0:00:18]} 49. Kf3 {[%emt 0:00:28]} Rd3+ {[%emt 0:00:10]} 50. Kg2 {[%emt 0:00:05]} Rg6+ {[%emt 0:00:10]} 51. Kh2 {[%emt 0:00:24]} Rf3 {[%emt 0:00:51]} 52. R7c2 {[%emt 0:00:23]} Rh6 {[%emt 0:00:55]} 53. Rg1+ {[%emt 0:00:08]} Kh7 {[%emt 0:00:20]} 54. Rg3 {[%emt 0:00:15]} Rxf4 {[%emt 0:00:14]} 55. Kg2 {[%emt 0:00:03]} Rhf6 {[%emt 0:01:01]} 56. f3 {[%emt 0:00:11]} Rd4 {[%emt 0:00:19]} 57. Rg4 {[%emt 0:01:00]} Rfd6 {[%emt 0:00:19]} 58. Rxd4 {[%emt 0:01:48]} Rxd4 {[%emt 0:00:08]} 59. Kf2 {[%emt 0:00:21]} Rd6 {[%emt 0:00:30]} 60. Ke3 {[%emt 0:00:07]} Kg6 {[%emt 0:00:46]} 61. Ke4 {[%emt 0:00:14]} Kf6 {[%emt 0:00:20]} 62. Rc5 {[%emt 0:01:40]} Ke6 {[%emt 0:01:44]} 63. h4 {[%emt 0:00:52]} Kf6 {[%emt 0:01:23]} 64. Rd5 {[%emt 0:00:43]} Rc6 {[%emt 0:00:37]} 65. Kd4 {[%emt 0:00:12]} Ke6 {[%emt 0:00:14]} 66. Rc5 {[%emt 0:00:30]} Rd6+ {[%emt 0:00:16]} 67. Ke4 {[%emt 0:00:39]} Kf6 {[%emt 0:00:25]} 68. f4 {[%emt 0:00:21]} Kg7 {[%emt 0:02:28]} 69. a4 {[%emt 0:01:11]} bxa4 {[%emt 0:00:35]} 70. bxa4 {[%emt 0:00:05]} Rb6 {[%emt 0:00:36]} 71. Kf5 {[%emt 0:01:02]} Rb4 {[%emt 0:00:42]} 72. Ra5 {[%emt 0:00:22]} Rb6 {[%emt 0:00:16]} 73. Kg4 {[%emt 0:00:07]} Kg6 {[%emt 0:00:43]} 74. Rg5+ {[%emt 0:01:02]} Kh6 {[%emt 0:01:55]} 75. Rf5 {[%emt 0:00:38]} Kg6 {[%emt 0:00:24]} 76. Rc5 {[%emt 0:00:34]} Kg7 {[%emt 0:01:22]} 77. Rg5+ {[%emt 0:00:35]} Kh6 {[%emt 0:00:14]} 78. Rf5 {[%emt 0:00:31]} Kg6 {[%emt 0:00:20]} 79. h5+ {[%emt 0:00:11]} Kg7 {[%emt 0:00:08]} 80. Kg5 {[%emt 0:00:08]} Rc6 {[%emt 0:00:50]} 81. Rd5 {[%emt 0:00:33]} Rb6 {[%emt 0:00:52]} 82. Ra5 {[%emt 0:00:43]} Rc6 {[%emt 0:00:10]} 83. Rd5 {[%emt 0:00:32]} Rb6 {[%emt 0:00:11]} 84. Rd7 {[%emt 0:00:14]} Rc6 {[%emt 0:01:08]} 85. Ra7 {[%emt 0:00:17]} Rb6 {[%emt 0:00:30]} 86. f5 {[%emt 0:00:52]} Rc6 {[%emt 0:00:25]} 87. a5 {[%emt 0:00:42]} Rd6 {[%emt 0:01:47]} 88. Rc7 {[%emt 0:00:10]} Rf6 {[%emt 0:00:37]} 89. Rb7 {[%emt 0:01:01]} Rc6 {[%emt 0:00:14]} 90. Rd7 {[%emt 0:00:43]} Rf6 {[%emt 0:00:16]} 91. Rd8 {[%emt 0:00:28]} Rc6 {[%emt 0:00:20]} 92. Rd7 {[%emt 0:00:29]} Rf6 {[%emt 0:00:11]} 93. Rb7 {[%emt 0:00:03]} Rc6 {[%emt 0:00:10]} 94. h6+ {[%emt 0:00:42]} Rxh6 {[%emt 0:00:32]} 95. Rb6 {[%emt 0:00:03]} f6+ {[%emt 0:01:03]} 96. Kg4 {[%emt 0:00:07]} Rh1 {[%emt 0:00:15]} 97. Rxa6 {[%emt 0:00:06]} Ra1 {[%emt 0:00:28]} 98. Ra7+ {[%emt 0:00:17]} Kh6 {[%emt 0:00:30]} 99. Kf4 {[%emt 0:00:03]} Ra4+ {[%emt 0:00:14]} 100. Ke3 {[%emt 0:00:06]} Kg5 {[%emt 0:00:10]} 101. a6 {[%emt 0:00:04]} Kxf5 {[%emt 0:00:17]} 102. Kd3 {[%emt 0:00:04]} Ke5 {[%emt 0:00:22]} 103. Kc3 {[%emt 0:00:04]} f5 {[%emt 0:00:15]} 104. Kb3 {[%emt 0:00:05]} Ra1 {[%emt 0:00:09]} 105. Kb4 {[%emt 0:00:04]} f4 {[%emt 0:00:11]} 106. Kb5 {[%emt 0:00:13]} f3 {[%emt 0:00:20]} 107. Rf7 {[%emt 0:00:08]} Ke4 {[%emt 0:00:19]} 108. a7 {[%emt 0:00:14]} Ke3 {[%emt 0:00:56]} 109. Kb6 {[%emt 0:00:08]} f2 {[%emt 0:00:16]} 110. Kb7 {[%emt 0:01:34]} Rxa7+ {[%emt 0:07:48]} 111. Kxa7 {[%emt 0:00:03]} Ke2 {[%emt 0:00:00]} 112. Kb6 {[%emt 0:00:01]} f1=Q {[%emt 0:00:00]} 113. Rxf1 {[%emt 0:06:57]} 1/2-1/2

[Event "7th Tulasi Lal Memorial TCCC 2024"]
[Site "Chyasal"]
[Date "2024.12.29"]
[Round "1.3"]
[White "Thapa, Rishon"]
[Black "Bhandari, Kshitiz"]
[Result "1-0"]
[ECO "C08"]
[WhiteElo "1857"]
[BlackElo "2103"]
[Annotator "RC"]
[PlyCount "98"]
[EventDate "2024.12.29"]
[EventType "team-tourn"]
[EventCountry "NEP"]
[SourceTitle "playchess.com"]
[Source "ChessBase"]
[SourceQuality "1"]
[TimeControl "5400+30"]

1. e4 {[%emt 0:00:13]} e6 {[%emt 0:00:04]} 2. d4 {[%emt 0:00:45]} d5 {[%emt 0:00:06]} 3. Nd2 {[%emt 0:00:15]} c5 {[%emt 0:00:34]} 4. Ngf3 {[%emt 0:00:09]} Nf6 {[%emt 0:00:23]} 5. exd5 {[%emt 0:02:28]} exd5 {[%emt 0:00:18]} 6. Bb5+ {[%emt 0:02:33]} Bd7 {[%emt 0:01:00]} 7. Bxd7+ {[%emt 0:01:13]} Nbxd7 {[%emt 0:00:09]} 8. O-O {[%emt 0:00:38]} Be7 {[%emt 0:00:05]} 9. Re1 {[%emt 0:05:43]} O-O {[%emt 0:00:43]} 10. dxc5 {[%emt 0:02:17]} Nxc5 {[%emt 0:01:17]} 11. Nb3 {[%emt 0:02:23]} Nce4 {[%emt 0:01:43]} 12. h3 {[%emt 0:00:41]} Re8 {[%emt 0:00:47]} 13. Be3 {[%emt 0:02:51]} Bf8 14. a4 {[%emt 0:03:50]} Qd7 {[%emt 0:14:15]} 15. c3 {[%emt 0:01:20]} Nd6 {[%emt 0:02:51]} 16. Nc5 {[%emt 0:16:56]} Qc8 {[%emt 0:04:29]} 17. Nd3 {[%emt 0:01:02]} Nf5 {[%emt 0:10:31]} 18. Bf4 {[%emt 0:02:07]} Rxe1+ {[%emt 0:01:56]} 19. Qxe1 {[%emt 0:05:00]} Ne4 {[%emt 0:16:40]} 20. Rd1 {[%emt 0:02:37]} Qe8 {[%emt 0:02:32]} 21. Nb4 {[%emt 0:09:07]} Bc5 {[%emt 0:03:39]} 22. Nd3 {[%emt 0:00:10]} Bf8 {[%emt 0:00:44]} 23. g4 {[%emt 0:02:32]} Ne7 {[%emt 0:02:09]} 24. Nb4 {[%emt 0:02:06]} Qxa4 {[%emt 0:04:57]} 25. Nxd5 {[%emt 0:08:33]} Nxd5 {[%emt 0:00:27]} 26. Rxd5 {[%emt 0:00:03]} Re8 {[%emt 0:08:18]} 27. Re5 {[%emt 0:09:53]} Rxe5 {[%emt 0:00:33]} 28. Bxe5 {[%emt 0:00:03]} Qc2 {[%emt 0:00:36]} 29. Bd4 {[%emt 0:01:47]} a5 {[%emt 0:01:34]} 30. Qe3 {[%emt 0:01:10]} Nd6 {[%emt 0:01:39]} 31. Bc5 {[%emt 0:03:49]} Qa4 {[%emt 0:07:43]} 32. Qe5 {[%emt 0:02:47]} Qd1+ {[%emt 0:10:45]} 33. Kg2 {[%emt 0:00:13]} f6 {[%emt 0:01:19]} 34. Qe6+ {[%emt 0:00:15]} Nf7 {[%emt 0:00:00]} 35. Bxf8 {[%emt 0:03:42]} Kxf8 {[%emt 0:00:01]} 36. Nd4 {[%emt 0:00:17]} Qa4 {[%emt 0:00:54]} 37. Qc8+ {[%emt 0:00:33]} Qe8 {[%emt 0:00:15]} 38. Qxb7 {[%emt 0:00:48]} g6 {[%emt 0:00:16]} 39. Qd5 {[%emt 0:00:35]} a4 {[%emt 0:00:47]} 40. Ne6+ {[%emt 0:00:39]} Ke7 {[%emt 0:01:18]} 41. Nc5 {[%emt 0:00:15]} Qc8 {[%emt 0:01:16]} 42. Nxa4 {[%emt 0:00:24]} h5 {[%emt 0:00:19]} 43. Qc5+ {[%emt 0:01:33]} Qxc5 {[%emt 0:00:04]} 44. Nxc5 {[%emt 0:00:05]} h4 {[%emt 0:00:28]} 45. f4 {[%emt 0:01:11]} f5 {[%emt 0:00:13]} 46. Kf3 {[%emt 0:00:37]} Kd6 {[%emt 0:00:02]} 47. Nd3 {[%emt 0:00:11]} Nd8 {[%emt 0:00:23]} 48. gxf5 {[%emt 0:01:18]} gxf5 {[%emt 0:00:03]} 49. Ne5 {[%emt 0:00:09]} Kd5 {[%emt 0:02:19]} 1-0

[Event "7th Tulasi Lal Memorial TCCC 2024"]
[Site "Chyasal"]
[Date "2024.12.29"]
[Round "1.4"]
[White "Shah, Abheek"]
[Black "Kapali, Binita"]
[Result "1/2-1/2"]
[ECO "A29"]
[WhiteElo "1790"]
[BlackElo "1652"]
[Annotator "NA RC"]
[PlyCount "78"]
[EventDate "2024.12.29"]
[EventType "team-tourn"]
[EventCountry "NEP"]
[SourceTitle "playchess.com"]
[Source "ChessBase"]
[SourceQuality "1"]
[TimeControl "5400+30"]

1. c4 e5 2. Nc3 Nf6 3. g3 Nc6 4. Bg2 Bc5 5. Nf3 a6 6. d3 d6 7. a3 h6 8. b4 Ba7 9. Bb2 Be6 10. Nd2 Rb8 11. Qa4 Bd7 12. b5 Nd4 13. e3 Ne6 14. Qc2 O-O 15. O-O Qc8 16. a4 c6 17. Nde4 Nxe4 18. Nxe4 Qc7 19. Ba3 Nc5 20. Nxc5 Bxc5 21. Bxc5 dxc5 22. bxa6 bxa6 23. Qc3 {[%emt 0:11:30]} a5 {[%emt 1:42:00]} 24. f4 exf4 {[%emt 0:00:00]} 25. Rxf4 {[%emt 0:31:07]} Rb4 {[%emt 0:01:00]} 26. d4 {[%emt 0:02:31]} cxd4 {[%emt 0:00:00]} 27. exd4 {[%emt 0:00:48]} Be6 {[%emt 0:00:00]} 28. Bf1 {[%emt 0:00:42]} Rfb8 {[%emt 0:00:00]} 29. Qc2 {[%emt 0:01:27]} Qd7 {[%emt 0:00:00]} 30. Rd1 {[%emt 0:00:35]} Bh3 {[%emt 0:00:00]} 31. Bxh3 {[%emt 0:02:33]} Qxh3 {[%emt 0:00:00]} 32. Qe4 {[%emt 0:00:13]} Rxc4 {[%emt 0:01:10]} 33. Rdf1 {[%emt 0:01:15]} Rb2 {[%emt 0:01:49]} 34. Qe8+ {[%emt 0:03:22]} Kh7 {[%emt 0:00:11]} 35. Qe4+ {[%emt 0:00:03]} Kg8 {[%emt 0:00:27]} 36. Qe8+ {[%emt 0:06:53]} Kh7 {[%emt 0:00:10]} 37. Qe4+ {[%emt 0:00:07]} Kg8 {[%emt 0:00:20]} 38. Qe8+ {[%emt 0:46:24]} Kh7 {[%emt 0:02:23]} 39. Qe4+ {[%emt 0:00:30]} Kg8 {[%emt 0:00:30]} 1/2-1/2

[Event "7th Tulasi Lal Memorial TCCC 2024"]
[Site "Chyasal"]
[Date "2024.12.29"]
[Round "1.5"]
[White "Rajbhandari, Rijendra"]
[Black "Subedi, Rajan"]
[Result "1/2-1/2"]
[ECO "E06"]
[WhiteElo "1999"]
[BlackElo "2021"]
[Annotator "RC"]
[PlyCount "34"]
[EventDate "2024.12.29"]
[EventType "team-tourn"]
[EventCountry "NEP"]
[SourceTitle "playchess.com"]
[Source "ChessBase"]
[SourceQuality "1"]
[TimeControl "5400+30"]

1. d4 {[%emt 0:00:43]} Nf6 {[%emt 0:00:11]} 2. c4 {[%emt 0:00:39]} e6 {[%emt 0:00:07]} 3. g3 {[%emt 0:00:33]} d5 {[%emt 0:00:06]} 4. Nf3 {[%emt 0:00:37]} b6 {[%emt 0:00:34]} 5. Bg2 {[%emt 0:03:03]} Bb7 {[%emt 0:00:07]} 6. O-O {[%emt 0:02:24]} Be7 {[%emt 0:00:05]} 7. Qa4+ {[%emt 0:07:30]} Nbd7 {[%emt 0:00:14]} 8. Ne5 {[%emt 0:00:32]} O-O {[%emt 0:00:14]} 9. Nc6 {[%emt 0:00:10]} Qe8 {[%emt 0:00:35]} 10. Nxe7+ {[%emt 0:01:34]} Qxe7 {[%emt 0:00:08]} 11. Nc3 {[%emt 0:01:06]} Rfd8 {[%emt 0:00:29]} 12. Rd1 {[%emt 0:02:42]} h6 {[%emt 0:00:30]} 13. cxd5 {[%emt 0:00:31]} exd5 {[%emt 0:00:48]} 14. Bf4 {[%emt 0:03:30]} c5 {[%emt 0:02:10]} 15. Rac1 {[%emt 0:00:21]} cxd4 16. Qxd4 {[%emt 0:08:07]} Nc5 {[%emt 0:24:17]} 17. Qe5 {[%emt 0:06:05]} Qe6 {[%emt 0:07:33]} 1/2-1/2

[Event "7th Tulasi Lal Memorial TCCC 2024"]
[Site "Chyasal"]
[Date "2024.12.29"]
[Round "1.6"]
[White "Nepal, Prakash Chandra"]
[Black "Chaudhary, Sushil"]
[Result "1/2-1/2"]
[ECO "D36"]
[WhiteElo "2012"]
[BlackElo "1900"]
[Annotator "RC"]
[PlyCount "55"]
[EventDate "2024.12.29"]
[EventType "team-tourn"]
[EventCountry "NEP"]
[SourceTitle "playchess.com"]
[Source "ChessBase"]
[SourceQuality "1"]
[TimeControl "5400+30"]

1. d4 {[%emt 0:00:04]} d5 {[%emt 0:00:16]} 2. c4 {[%emt 0:00:06]} c6 {[%emt 0:00:05]} 3. Nf3 {[%emt 0:00:06]} Bf5 {[%emt 0:00:51]} 4. Nc3 {[%emt 0:00:21]} e6 {[%emt 0:03:50]} 5. cxd5 {[%emt 0:00:10]} exd5 {[%emt 0:01:47]} 6. Bg5 {[%emt 0:00:07]} Be7 {[%emt 0:01:53]} 7. Bxe7 {[%emt 0:00:09]} Qxe7 {[%emt 0:00:52]} 8. e3 {[%emt 0:00:07]} Nf6 {[%emt 0:00:29]} 9. Bd3 {[%emt 0:00:06]} Ne4 {[%emt 0:01:25]} 10. Qc2 {[%emt 0:00:07]} Nd7 {[%emt 0:01:21]} 11. O-O {[%emt 0:00:37]} O-O {[%emt 0:02:05]} 12. Rfe1 {[%emt 0:00:21]} Rae8 {[%emt 0:00:14]} 13. Nd2 {[%emt 0:00:27]} Bg6 {[%emt 0:02:29]} 14. f3 {[%emt 0:00:08]} Nxd2 {[%emt 0:00:44]} 15. Qxd2 {[%emt 0:00:02]} Qg5 {[%emt 0:00:41]} 16. Bxg6 {[%emt 0:00:16]} hxg6 {[%emt 0:00:26]} 17. Rad1 {[%emt 0:00:14]} Nb6 {[%emt 0:00:36]} 18. e4 {[%emt 0:00:25]} Qxd2 {[%emt 0:00:17]} 19. Rxd2 {[%emt 0:00:01]} Re7 {[%emt 0:00:51]} 20. e5 {[%emt 0:00:32]} g5 {[%emt 0:01:19]} 21. g3 {[%emt 0:00:07]} f6 {[%emt 0:12:28]} 22. f4 {[%emt 0:00:30]} gxf4 {[%emt 0:00:30]} 23. gxf4 {[%emt 0:00:30]} fxe5 24. fxe5 {[%emt 0:00:00]} Nc4 {[%emt 0:01:00]} 25. Rg2 {[%emt 0:00:34]} Rf4 {[%emt 0:00:24]} 26. b3 {[%emt 0:00:25]} Nb6 {[%emt 0:00:39]} 27. Ne2 {[%emt 0:00:13]} Re4 {[%emt 0:00:31]} 28. Rd1 {[%emt 0:01:49]} 1/2-1/2

[Event "7th Tulasi Lal Memorial TCCC 2024"]
[Site "Chyasal"]
[Date "2024.12.29"]
[Round "1.7"]
[White "Phuyal, Aashish"]
[Black "Dahal, Sushrut"]
[Result "1/2-1/2"]
[ECO "C01"]
[WhiteElo "1907"]
[BlackElo "2007"]
[Annotator "RC"]
[PlyCount "23"]
[EventDate "2024.12.29"]
[EventType "team-tourn"]
[EventCountry "NEP"]
[SourceTitle "playchess.com"]
[Source "ChessBase"]
[SourceQuality "1"]
[TimeControl "5400+30"]

1. e4 {[%emt 0:00:07]} e6 {[%emt 0:00:07]} 2. d4 {[%emt 0:00:14]} d5 {[%emt 0:00:11]} 3. exd5 {[%emt 0:00:19]} exd5 {[%emt 0:00:02]} 4. Bd3 {[%emt 0:00:22]} Bd6 {[%emt 0:00:01]} 5. Qe2+ {[%emt 0:00:21]} Qe7 {[%emt 0:00:11]} 6. Qxe7+ {[%emt 0:00:09]} Nxe7 {[%emt 0:00:05]} 7. Ne2 {[%emt 0:00:18]} Bf5 {[%emt 0:00:31]} 8. Bxf5 {[%emt 0:03:50]} Nxf5 {[%emt 0:00:01]} 9. c3 {[%emt 0:00:40]} Kd7 {[%emt 0:00:27]} 10. O-O {[%emt 0:00:54]} Re8 {[%emt 0:00:07]} 11. Ng3 {[%emt 0:00:22]} Nxg3 {[%emt 0:00:22]} 12. hxg3 {[%emt 0:00:15]} 1/2-1/2

[Event "7th Tulasi Lal Memorial TCCC 2024"]
[Site "Chyasal"]
[Date "2024.12.29"]
[Round "2.1"]
[White "Maharjan, Sajin"]
[Black "Rajbhandari, Rijendra"]
[Result "1-0"]
[ECO "B13"]
[WhiteElo "1960"]
[BlackElo "1999"]
[Annotator "RC"]
[PlyCount "83"]
[EventDate "2024.12.29"]
[EventType "team-tourn"]
[EventCountry "NEP"]
[SourceTitle "playchess.com"]
[Source "ChessBase"]
[SourceQuality "1"]
[TimeControl "5400+30"]

1. e4 {[%emt 0:00:03]} c6 {[%emt 0:00:07]} 2. d4 {[%emt 0:00:06]} d5 {[%emt 0:00:08]} 3. exd5 {[%emt 0:00:09]} cxd5 {[%emt 0:00:08]} 4. Bd3 {[%emt 0:00:04]} Nc6 {[%emt 0:00:27]} 5. c3 {[%emt 0:00:07]} Qc7 {[%emt 0:00:10]} 6. Na3 {[%emt 0:02:09]} a6 {[%emt 0:01:30]} 7. Nc2 {[%emt 0:00:08]} Nf6 {[%emt 0:02:02]} 8. h3 {[%emt 0:00:11]} g6 {[%emt 0:01:29]} 9. Nf3 {[%emt 0:00:27]} Bf5 {[%emt 0:00:48]} 10. Bxf5 {[%emt 0:14:02]} gxf5 {[%emt 0:00:18]} 11. Qe2 {[%emt 0:01:26]} e6 {[%emt 0:00:43]} 12. Ne5 {[%emt 0:05:56]} Nxe5 {[%emt 0:01:22]} 13. dxe5 {[%emt 0:03:16]} Ne4 {[%emt 0:01:51]} 14. Bf4 {[%emt 0:06:09]} Bg7 {[%emt 0:16:41]} 15. f3 {[%emt 0:01:19]} Nc5 {[%emt 0:00:15]} 16. O-O {[%emt 0:09:09]} O-O {[%emt 0:06:17]} 17. Nd4 {[%emt 0:02:50]} Nd7 {[%emt 0:01:14]} 18. Rfe1 {[%emt 0:01:03]} Kh8 {[%emt 0:00:17]} 19. Qe3 {[%emt 0:00:27]} Rg8 {[%emt 0:00:20]} 20. Nxf5 {[%emt 0:01:45]} Qc5 {[%emt 0:07:56]} 21. Nd4 {[%emt 0:03:41]} b5 {[%emt 0:05:35]} 22. Kh1 {[%emt 0:05:17]} Rgc8 {[%emt 0:03:13]} 23. Qd2 {[%emt 0:09:12]} Qc7 {[%emt 0:06:12]} 24. Bh2 {[%emt 0:01:42]} Qb8 {[%emt 0:12:43]} 25. f4 {[%emt 0:01:19]} Nc5 {[%emt 0:00:20]} 26. f5 {[%emt 0:04:08]} Re8 {[%emt 0:07:15]} 27. f6 {[%emt 0:04:00]} Bf8 {[%emt 0:01:52]} 28. Qg5 {[%emt 0:01:13]} b4 {[%emt 0:05:18]} 29. c4 {[%emt 0:06:04]} Rc8 {[%emt 0:07:28]} 30. cxd5 {[%emt 0:03:31]} Qb7 {[%emt 0:01:23]} 31. Re3 {[%emt 0:00:47]} Bh6 {[%emt 0:04:04]} 32. Qxh6 {[%emt 0:00:29]} Rg8 {[%emt 0:00:08]} 33. Rg3 {[%emt 0:03:00]} Rxg3 {[%emt 0:00:25]} 34. Bxg3 {[%emt 0:01:01]} Rg8 {[%emt 0:00:01]} 35. Nf3 {[%emt 0:00:30]} Ne4 {[%emt 0:00:54]} 36. Bf4 {[%emt 0:01:10]} Qxd5 {[%emt 0:00:34]} 37. Qh4 {[%emt 0:02:48]} Rc8 {[%emt 0:03:09]} 38. Bh6 {[%emt 0:01:03]} Rc2 {[%emt 0:02:21]} 39. Bf8 {[%emt 0:02:52]} Nf2+ {[%emt 0:00:49]} 40. Kh2 {[%emt 0:00:29]} Qd3 {[%emt 0:01:10]} 41. Ne1 {[%emt 0:02:28]} Qc4 {[%emt 0:01:21]} 42. Qg5 {[%emt 0:00:43]} 1-0

[Event "7th Tulasi Lal Memorial TCCC 2024"]
[Site "Chyasal"]
[Date "2024.12.29"]
[Round "2.2"]
[White "Chaudhary, Sushil"]
[Black "Neupane, Shailendra"]
[Result "1-0"]
[ECO "C45"]
[WhiteElo "1900"]
[BlackElo "2016"]
[Annotator "RC"]
[PlyCount "103"]
[EventDate "2024.12.29"]
[EventType "team-tourn"]
[EventCountry "NEP"]
[SourceTitle "playchess.com"]
[Source "ChessBase"]
[SourceQuality "1"]
[TimeControl "5400+30"]

1. e4 {[%emt 0:00:25]} e5 {[%emt 0:00:09]} 2. Nf3 {[%emt 0:00:50]} Nc6 {[%emt 0:00:06]} 3. d4 {[%emt 0:00:06]} exd4 {[%emt 0:00:09]} 4. Nxd4 {[%emt 0:00:06]} Bc5 {[%emt 0:00:43]} 5. Nb3 {[%emt 0:00:18]} Bb6 {[%emt 0:01:00]} 6. Nc3 {[%emt 0:01:02]} Nf6 {[%emt 0:01:51]} 7. Bg5 {[%emt 0:03:59]} h6 {[%emt 0:00:43]} 8. Bh4 {[%emt 0:00:22]} d6 {[%emt 0:00:24]} 9. Qd2 {[%emt 0:06:09]} Be6 {[%emt 0:00:49]} 10. f4 {[%emt 0:01:15]} Qe7 {[%emt 0:09:05]} 11. Bxf6 {[%emt 0:08:43]} Qxf6 {[%emt 0:01:01]} 12. O-O-O {[%emt 0:00:30]} O-O-O {[%emt 0:08:03]} 13. g3 {[%emt 0:00:47]} Bxb3 {[%emt 0:07:10]} 14. axb3 {[%emt 0:00:30]} Ba5 {[%emt 0:01:07]} 15. Bg2 {[%emt 0:01:53]} Rhe8 {[%emt 0:01:37]} 16. Qd3 {[%emt 0:02:51]} Bxc3 {[%emt 0:02:09]} 17. bxc3 {[%emt 0:00:24]} g5 {[%emt 0:01:16]} 18. Rhf1 {[%emt 0:01:40]} Re7 {[%emt 0:04:45]} 19. e5 {[%emt 0:03:20]} Qe6 {[%emt 0:18:05]} 20. Bxc6 {[%emt 0:01:58]} bxc6 {[%emt 0:00:15]} 21. Qa6+ {[%emt 0:01:03]} Kb8 {[%emt 0:03:53]} 22. Qxc6 {[%emt 0:10:52]} d5 {[%emt 0:02:25]} 23. Qb5+ {[%emt 0:00:57]} Ka8 {[%emt 0:00:19]} 24. Qc5 {[%emt 0:01:53]} c6 {[%emt 0:03:49]} 25. Rd4 {[%emt 0:03:13]} Rc8 {[%emt 0:03:18]} 26. Rfd1 {[%emt 0:03:49]} Rb7 {[%emt 0:01:29]} 27. c4 {[%emt 0:02:24]} gxf4 {[%emt 0:04:08]} 28. gxf4 {[%emt 0:01:17]} f6 {[%emt 0:02:22]} 29. Qd6 {[%emt 0:09:03]} Qxd6 {[%emt 0:03:11]} 30. exd6 {[%emt 0:00:06]} dxc4 {[%emt 0:00:30]} 31. Rxc4 {[%emt 0:00:24]} Rd7 {[%emt 0:01:53]} 32. Re4 {[%emt 0:00:10]} Kb7 {[%emt 0:00:51]} 33. c4 {[%emt 0:08:14]} c5 {[%emt 0:00:29]} 34. Re6 {[%emt 0:00:09]} Rf8 {[%emt 0:00:51]} 35. Kc2 {[%emt 0:00:30]} Kc6 {[%emt 0:00:23]} 36. Rd5 {[%emt 0:02:01]} a5 {[%emt 0:01:18]} 37. Kc3 {[%emt 0:02:22]} Rff7 {[%emt 0:05:57]} 38. Kd3 {[%emt 0:00:23]} Rf8 {[%emt 0:01:26]} 39. Ke4 {[%emt 0:24:02]} Rb8 {[%emt 0:00:11]} 40. Rd3 {[%emt 0:00:00]} a4 {[%emt 0:01:42]} 41. bxa4 {[%emt 0:00:00]} Rb4 {[%emt 0:00:12]} 42. Rxf6 {[%emt 0:00:00]} Rxc4+ {[%emt 0:00:21]} 43. Ke5 {[%emt 0:00:00]} Rxa4 {[%emt 0:00:53]} 44. Rxh6 {[%emt 0:00:00]} c4 {[%emt 0:00:33]} 45. Rd4 {[%emt 0:00:00]} Ra5+ {[%emt 0:05:10]} 46. Ke6 {[%emt 0:00:00]} Raa7 {[%emt 0:02:01]} 47. Rxc4+ {[%emt 0:00:00]} Kb5 {[%emt 0:00:01]} 48. Rd4 {[%emt 0:00:00]} Kc5 {[%emt 0:00:16]} 49. Rd5+ {[%emt 0:00:00]} Kc4 {[%emt 0:00:07]} 50. Rh8 {[%emt 0:00:00]} Rab7 {[%emt 0:02:27]} 51. Rc8+ {[%emt 0:00:00]} Kb4 {[%emt 0:00:07]} 52. Rd1 {[%emt 0:00:00]} 1-0